[Event "GER-ch Youth U12w 2019"]
[Site "Willingen"]
[Date "2019.06.14"]
[Round "8.8"]
[White "Lieberwirth, Nele"]
[Black "Ulrich, Helena Irene"]
[Result "1-0"]
[ECO "B23"]
[WhiteElo "1385"]
[BlackElo "1514"]
[Annotator "NA"]
[PlyCount "42"]
[EventDate "2019.06.07"]
[EventType "swiss"]
[EventRounds "9"]
[EventCountry "GER"]
[SourceTitle "playchess.com"]
[Source "ChessBase"]
[SourceQuality "1"]
[TimeControl "40/4500+30:900+30"]

1. e4 {[%emt 0:00:00]} c5 {[%emt 0:00:00]} 2. Nc3 {[%emt 0:00:00]} Nc6 {[%emt 0:00:00]} 3. f4 {[%emt 0:00:00]} g6 {[%emt 0:00:00]} 4. Nf3 {[%emt 0:00:00]} Bg7 {[%emt 0:00:00]} 5. Be2 {[%emt 0:00:00]} e6 {[%emt 0:00:00]} 6. d3 {[%emt 0:00:56]} Nge7 {[%emt 0:00:00]} 7. O-O {[%emt 0:02:22]} O-O {[%emt 0:00:00]} 8. Be3 {[%emt 0:03:16]} b6 {[%emt 0:00:00]} 9. Qe1 {[%emt 0:05:13]} f5 {[%emt 0:03:17]} 10. Rd1 {[%emt 0:08:27]} d5 {[%emt 0:04:38]} 11. Bf2 {[%emt 0:10:06]} fxe4 {[%emt 0:02:30]} 12. dxe4 {[%emt 0:02:19]} d4 {[%emt 0:00:26]} 13. Nb1 {[%emt 0:00:58]} Rxf4 {[%emt 0:03:03]} 14. Bc4 {[%emt 0:02:31]} Na5 {[%emt 0:05:48]} 15. Bg3 {[%emt 0:04:41]} Rf8 {[%emt 0:01:37]} 16. Na3 {[%emt 0:01:47]} a6 {[%emt 0:04:33]} 17. Ng5 {[%emt 0:04:08]} Nxc4 {[%emt 0:01:12]} 18. Nxc4 {[%emt 0:02:52]} Rxf1+ {[%emt 0:02:35]} 19. Qxf1 {[%emt 0:00:20]} b5 {[%emt 0:06:31]} 20. Qf7+ {[%emt 0:04:30]} Kh8 {[%emt 0:00:07]} 21. Be5 {[%emt 0:01:23] normal} Qg8 {[%emt 0:02:05] normal} 1-0

[Event "GER-ch Youth U12w 2019"]
[Site "Willingen"]
[Date "2019.06.14"]
[Round "8.9"]
[White "von Beckh, Frieda"]
[Black "Hoffmann, Sophia"]
[Result "1-0"]
[ECO "C15"]
[WhiteElo "1465"]
[BlackElo "1347"]
[Annotator "NA"]
[PlyCount "34"]
[EventDate "2019.06.07"]
[EventType "swiss"]
[EventRounds "9"]
[EventCountry "GER"]
[SourceTitle "playchess.com"]
[Source "ChessBase"]
[SourceQuality "1"]
[TimeControl "40/4500+30:900+30"]

1. e4 {[%emt 0:00:00]} e6 {[%emt 0:00:00]} 2. d4 {[%emt 0:00:00]} d5 {[%emt 0:00:00]} 3. Nc3 {[%emt 0:00:00]} Bb4 {[%emt 0:00:00]} 4. exd5 {[%emt 0:00:00]} exd5 {[%emt 0:00:00]} 5. Bd2 {[%emt 0:00:00]} Ne7 {[%emt 0:00:00]} 6. Nf3 {[%emt 0:00:00]} O-O {[%emt 0:00:00]} 7. Bd3 {[%emt 0:00:00]} Nbc6 {[%emt 0:00:00]} 8. O-O {[%emt 0:00:00]} Bg4 {[%emt 0:00:00]} 9. h3 {[%emt 0:00:00]} Bh5 {[%emt 0:00:00]} 10. Re1 {[%emt 0:00:00]} Nxd4 {[%emt 0:00:00]} 11. g4 {[%emt 0:00:00]} Nxf3+ {[%emt 0:00:00]} 12. Qxf3 {[%emt 0:00:00]} Bg6 {[%emt 0:00:00]} 13. Re5 {[%emt 0:12:27]} d4 {[%emt 0:00:00]} 14. Ne4 {[%emt 0:03:24]} Bxe4 {[%emt 0:00:56]} 15. Qxe4 {[%emt 0:00:34]} f5 {[%emt 0:05:54]} 16. gxf5 {[%emt 0:03:29]} Bxd2 {[%emt 0:02:02]} 17. Rxe7 {[%emt 0:01:13]} Bb4 {[%emt 0:03:39] normal} 1-0

[Event "GER-ch Youth U12w 2019"]
[Site "Willingen"]
[Date "2019.06.15"]
[Round "9.1"]
[White "Zhou, Lepu Coco"]
[Black "Roncea, Andrea-Alexandra"]
[Result "1/2-1/2"]
[ECO "C70"]
[WhiteElo "1724"]
[BlackElo "1558"]
[Annotator "NA"]
[PlyCount "52"]
[EventDate "2019.06.07"]
[EventType "swiss"]
[EventRounds "9"]
[EventCountry "GER"]
[SourceTitle "playchess.com"]
[Source "ChessBase"]
[SourceQuality "1"]
[TimeControl "40/4500+30:900+30"]

1. e4 {[%emt 0:00:00]} e5 {[%emt 0:00:00]} 2. Nf3 {[%emt 0:00:00]} Nc6 {[%emt 0:00:00]} 3. Bb5 {[%emt 0:00:00]} a6 {[%emt 0:00:00]} 4. Ba4 {[%emt 0:00:00]} b5 {[%emt 0:00:00]} 5. Bb3 {[%emt 0:00:00]} Bb7 {[%emt 0:00:00]} 6. O-O {[%emt 0:00:00]} Be7 {[%emt 0:00:00]} 7. c3 {[%emt 0:00:00]} Nf6 {[%emt 0:00:00]} 8. Qe2 {[%emt 0:00:00]} O-O {[%emt 0:00:00]} 9. d4 {[%emt 0:00:00]} d6 {[%emt 0:00:00]} 10. Rd1 {[%emt 0:00:00]} Qc8 {[%emt 0:00:00]} 11. Nbd2 {[%emt 0:00:00]} h6 {[%emt 0:00:00]} 12. Nf1 {[%emt 0:00:00]} Re8 {[%emt 0:00:00]} 13. Ng3 {[%emt 0:00:00]} Bf8 {[%emt 0:00:00]} 14. h3 {[%emt 0:00:00]} exd4 {[%emt 0:00:00]} 15. cxd4 {[%emt 0:00:00]} Nb4 {[%emt 0:00:00]} 16. Nd2 {[%emt 0:01:06]} c5 {[%emt 0:00:00]} 17. dxc5 {[%emt 0:02:02]} dxc5 {[%emt 0:00:00]} 18. a3 {[%emt 0:01:41]} Nc6 {[%emt 0:00:00]} 19. Nf3 {[%emt 0:05:54]} Qc7 {[%emt 0:01:31]} 20. Bd2 {[%emt 0:04:57]} Rad8 {[%emt 0:08:42]} 21. Bc3 {[%emt 0:00:31]} Nd7 {[%emt 0:07:37]} 22. Nh4 {[%emt 0:02:40]} c4 {[%emt 0:16:40]} 23. Bc2 {[%emt 0:00:08]} Nc5 {[%emt 0:01:12]} 24. Nhf5 {[%emt 0:01:58]} g6 {[%emt 0:11:00]} 25. Ne3 {[%emt 0:10:18]} Ne5 {[%emt 0:08:45]} 26. h4 {[%emt 0:05:52]} h5 {[%emt 0:04:29] normal} 1/2-1/2

[Event "GER-ch Youth U12w 2019"]
[Site "Willingen"]
[Date "2019.06.15"]
[Round "9.2"]
[White "Sereda, Yaroslava"]
[Black "Peglau, Charis"]
[Result "1-0"]
[ECO "A06"]
[WhiteElo "1626"]
[BlackElo "1514"]
[Annotator "NA"]
[PlyCount "59"]
[EventDate "2019.06.07"]
[EventType "swiss"]
[EventRounds "9"]
[EventCountry "GER"]
[SourceTitle "playchess.com"]
[Source "ChessBase"]
[SourceQuality "1"]
[TimeControl "40/4500+30:900+30"]

1. g3 {[%emt 0:00:00]} d5 {[%emt 0:00:00]} 2. Nf3 {[%emt 0:00:00]} Nf6 {[%emt 0:00:00]} 3. Bg2 {[%emt 0:00:00]} g6 {[%emt 0:00:00]} 4. O-O {[%emt 0:00:00]} Bg7 {[%emt 0:00:00]} 5. d4 {[%emt 0:00:00]} Bf5 {[%emt 0:00:00]} 6. c4 {[%emt 0:00:00]} c6 {[%emt 0:00:00]} 7. b3 {[%emt 0:00:00]} O-O {[%emt 0:00:00]} 8. Bb2 {[%emt 0:00:00]} Qc7 {[%emt 0:00:00]} 9. Nc3 {[%emt 0:01:39]} dxc4 {[%emt 0:00:00]} 10. bxc4 {[%emt 0:00:17]} Nbd7 {[%emt 0:00:00]} 11. Nd2 {[%emt 0:02:59]} Nb6 {[%emt 0:00:00]} 12. e4 {[%emt 0:07:23]} Bd7 {[%emt 0:00:00]} 13. e5 {[%emt 0:28:13]} Ng4 {[%emt 0:04:02]} 14. Qe2 {[%emt 0:03:06]} Nh6 {[%emt 0:01:36]} 15. Rfe1 {[%emt 0:03:21]} e6 {[%emt 0:03:19]} 16. Nde4 {[%emt 0:04:15]} Nf5 {[%emt 0:00:37]} 17. Qd3 {[%emt 0:03:06]} Rfd8 {[%emt 0:06:58]} 18. Ba3 {[%emt 0:04:34]} Be8 {[%emt 0:02:23]} 19. Nd6 {[%emt 0:02:15]} Nxd6 {[%emt 0:01:48]} 20. Bxd6 {[%emt 0:00:30]} Rxd6 {[%emt 0:08:16]} 21. exd6 {[%emt 0:01:16]} Qxd6 {[%emt 0:00:14]} 22. Rad1 {[%emt 0:00:53]} c5 {[%emt 0:09:36]} 23. d5 {[%emt 0:04:21]} exd5 {[%emt 0:01:57]} 24. Nxd5 {[%emt 0:00:43]} Kh8 {[%emt 0:03:23]} 25. Nxb6 {[%emt 0:01:21]} Qxb6 {[%emt 0:04:18]} 26. Rb1 {[%emt 0:00:49]} Qa5 {[%emt 0:02:22]} 27. Red1 {[%emt 0:04:51]} Qxa2 {[%emt 0:02:07]} 28. Rxb7 {[%emt 0:01:19]} Bd4 {[%emt 0:05:03]} 29. Rd2 {[%emt 0:01:52]} Qa6 {[%emt 0:02:36]} 30. Re7 {[%emt 0:03:57] normal} 1-0

[Event "GER-ch Youth U12w 2019"]
[Site "Willingen"]
[Date "2019.06.15"]
[Round "9.3"]
[White "Trunz, Michelle"]
[Black "Braeutigam, Katerina"]
[Result "0-1"]
[ECO "B14"]
[WhiteElo "1505"]
[BlackElo "1697"]
[Annotator "NA"]
[PlyCount "80"]
[EventDate "2019.06.07"]
[EventType "swiss"]
[EventRounds "9"]
[EventCountry "GER"]
[SourceTitle "playchess.com"]
[Source "ChessBase"]
[SourceQuality "1"]
[TimeControl "40/4500+30:900+30"]

1. e4 {[%emt 0:00:00]} c6 {[%emt 0:00:00]} 2. d4 {[%emt 0:00:00]} d5 {[%emt 0:00:00]} 3. exd5 {[%emt 0:00:00]} cxd5 {[%emt 0:00:00]} 4. c4 {[%emt 0:00:00]} Nf6 {[%emt 0:00:00]} 5. Nc3 {[%emt 0:00:00]} e6 {[%emt 0:00:00]} 6. c5 {[%emt 0:00:00]} b6 {[%emt 0:00:00]} 7. b4 {[%emt 0:00:00]} a5 {[%emt 0:00:00]} 8. Na4 {[%emt 0:00:00]} Nfd7 {[%emt 0:00:00]} 9. Bb5 {[%emt 0:00:00]} bxc5 {[%emt 0:00:00]} 10. bxc5 {[%emt 0:00:00]} Ba6 {[%emt 0:00:00]} 11. Qb3 {[%emt 0:00:00]} Bxb5 {[%emt 0:00:00]} 12. Qxb5 {[%emt 0:00:00]} Qc7 {[%emt 0:00:11]} 13. Nb6 {[%emt 0:00:00]} Ra7 {[%emt 0:00:50]} 14. f4 {[%emt 0:00:00]} Nc6 {[%emt 0:01:20]} 15. Nf3 {[%emt 0:01:52]} Be7 {[%emt 0:05:11]} 16. O-O {[%emt 0:01:40]} O-O {[%emt 0:02:47]} 17. Be3 {[%emt 0:01:48]} Rb8 {[%emt 0:00:40]} 18. Rab1 {[%emt 0:01:51]} Bd8 {[%emt 0:01:36]} 19. Rfc1 {[%emt 0:03:36]} Rab7 {[%emt 0:01:55]} 20. Ne5 {[%emt 0:00:48]} Ndxe5 {[%emt 0:09:25]} 21. fxe5 {[%emt 0:00:57]} h6 {[%emt 0:01:17]} 22. Bf2 {[%emt 0:01:30]} f6 {[%emt 0:03:14]} 23. exf6 {[%emt 0:00:47]} Bxf6 {[%emt 0:00:30]} 24. Rd1 {[%emt 0:02:27]} Rf8 {[%emt 0:03:33]} 25. Qe2 {[%emt 0:01:24]} Qf7 {[%emt 0:02:59]} 26. a3 {[%emt 0:03:01]} Re7 {[%emt 0:03:41]} 27. Rd2 {[%emt 0:10:32]} Bg5 {[%emt 0:03:16]} 28. Be3 {[%emt 0:01:42]} Bxe3+ {[%emt 0:02:14]} 29. Qxe3 {[%emt 0:00:08]} Qf6 {[%emt 0:00:34]} 30. Rbd1 {[%emt 0:08:41]} Ref7 {[%emt 0:00:44]} 31. Qe2 {[%emt 0:01:07]} Kh8 {[%emt 0:06:10]} 32. Na4 {[%emt 0:01:23]} Ne7 {[%emt 0:11:40]} 33. Nc3 {[%emt 0:01:53]} Nf5 {[%emt 0:05:29]} 34. g3 {[%emt 0:06:08]} Qg5 {[%emt 0:05:35]} 35. Rd3 {[%emt 0:01:56]} Nh4 {[%emt 0:11:03]} 36. Kh1 {[%emt 0:08:44]} Rf2 {[%emt 0:02:18]} 37. Qe1 {[%emt 0:05:13]} Qg4 {[%emt 0:01:49]} 38. Qg1 {[%emt 0:05:30]} Rg2 {[%emt 0:00:11]} 39. Qxg2 {[%emt 0:01:04]} Nxg2 {[%emt 0:00:06]} 40. Kxg2 {[%emt 0:00:40]} Qf5 {[%emt 0:00:18] normal} 0-1

[Event "GER-ch Youth U12w 2019"]
[Site "Willingen"]
[Date "2019.06.15"]
[Round "9.4"]
[White "Adelmeyer, Nelly"]
[Black "Pohle, Saskia"]
[Result "1-0"]
[ECO "B22"]
[WhiteElo "1420"]
[BlackElo "1819"]
[Annotator "NA"]
[PlyCount "48"]
[EventDate "2019.06.07"]
[EventType "swiss"]
[EventRounds "9"]
[EventCountry "GER"]
[SourceTitle "playchess.com"]
[Source "ChessBase"]
[SourceQuality "1"]
[TimeControl "40/4500+30:900+30"]

1. e4 {[%emt 0:00:00]} c5 {[%emt 0:00:00]} 2. c3 {[%emt 0:00:00]} d5 {[%emt 0:00:00]} 3. exd5 {[%emt 0:00:00]} Qxd5 {[%emt 0:00:00]} 4. Nf3 {[%emt 0:00:00]} Nf6 {[%emt 0:00:00]} 5. Be2 {[%emt 0:00:00]} Nc6 {[%emt 0:00:00]} 6. O-O {[%emt 0:00:00]} e6 {[%emt 0:00:00]} 7. d4 {[%emt 0:00:00]} Be7 {[%emt 0:00:00]} 8. h3 {[%emt 0:00:00]} O-O {[%emt 0:00:00]} 9. Bf4 {[%emt 0:00:00]} b6 {[%emt 0:00:00]} 10. Ne5 {[%emt 0:00:00]} Nxe5 {[%emt 0:00:46]} 11. dxe5 {[%emt 0:00:00]} Qxd1 {[%emt 0:02:28]} 12. Rxd1 {[%emt 0:00:00]} Nd5 {[%emt 0:15:26]} 13. Bf3 {[%emt 0:04:46]} Bb7 {[%emt 0:12:22]} 14. Bg3 {[%emt 0:01:01]} Rad8 {[%emt 0:01:24]} 15. Na3 {[%emt 0:03:02]} Ba8 {[%emt 0:02:01]} 16. c4 {[%emt 0:04:06]} Nb4 {[%emt 0:02:55]} 17. Bxa8 {[%emt 0:00:54]} Rxa8 {[%emt 0:02:05]} 18. Rd7 {[%emt 0:00:22]} Nc6 {[%emt 0:01:08]} 19. Rad1 {[%emt 0:04:06]} a6 {[%emt 0:05:26]} 20. Rc7 {[%emt 0:05:38]} Rfc8 {[%emt 0:04:03]} 21. Rdd7 {[%emt 0:01:45]} Rxc7 {[%emt 0:01:49]} 22. Rxc7 {[%emt 0:00:08]} Nxe5 {[%emt 0:08:20]} 23. Bxe5 {[%emt 0:00:41] normal} Bd8 {[%emt 0:00:59] normal} 24. Rb7 {[%emt 0:01:39]} Rc8 {[%emt 0:01:46] normal} 1-0

[Event "GER-ch Youth U12w 2019"]
[Site "Willingen"]
[Date "2019.06.15"]
[Round "9.5"]
[White "Prinzen, Siri Marleen"]
[Black "Fischer, Darja"]
[Result "1-0"]
[ECO "B12"]
[WhiteElo "1505"]
[BlackElo "1480"]
[Annotator "NA"]
[PlyCount "82"]
[EventDate "2019.06.07"]
[EventType "swiss"]
[EventRounds "9"]
[EventCountry "GER"]
[SourceTitle "playchess.com"]
[Source "ChessBase"]
[SourceQuality "1"]
[TimeControl "40/4500+30:900+30"]

1. e4 {[%emt 0:00:00]} c6 {[%emt 0:00:00]} 2. d4 {[%emt 0:00:00]} d5 {[%emt 0:00:00]} 3. e5 {[%emt 0:00:00]} Bf5 {[%emt 0:00:00]} 4. h4 {[%emt 0:00:00]} h6 {[%emt 0:00:00]} 5. g4 {[%emt 0:00:00]} Bg6 {[%emt 0:00:00]} 6. h5 {[%emt 0:00:00]} Bh7 {[%emt 0:00:00]} 7. e6 {[%emt 0:00:00]} fxe6 {[%emt 0:00:00]} 8. Bd3 {[%emt 0:00:00]} Bxd3 {[%emt 0:00:00]} 9. Qxd3 {[%emt 0:00:00]} Qd6 {[%emt 0:00:00]} 10. Qg6+ {[%emt 0:00:00]} Kd8 {[%emt 0:00:00]} 11. Nf3 {[%emt 0:00:00]} Nd7 {[%emt 0:00:39]} 12. g5 {[%emt 0:00:00]} e5 {[%emt 0:02:58]} 13. gxh6 {[%emt 0:03:21]} Qxg6 {[%emt 0:02:07]} 14. hxg6 {[%emt 0:00:10]} Nxh6 {[%emt 0:04:07]} 15. dxe5 {[%emt 0:03:00]} e6 {[%emt 0:02:20]} 16. Bf4 {[%emt 0:04:05]} Be7 {[%emt 0:02:16]} 17. Nd4 {[%emt 0:01:44]} Nb6 {[%emt 0:06:40]} 18. Nxe6+ {[%emt 0:02:35]} Kd7 {[%emt 0:00:15]} 19. Nxg7 {[%emt 0:01:59]} Rag8 {[%emt 0:00:52]} 20. Rxh6 {[%emt 0:02:23]} Rxh6 {[%emt 0:02:17]} 21. Bxh6 {[%emt 0:00:06]} Bf8 {[%emt 0:00:05]} 22. e6+ {[%emt 0:01:19]} Kd6 {[%emt 0:01:32]} 23. e7 {[%emt 0:03:23]} Kxe7 {[%emt 0:01:04]} 24. Nf5+ {[%emt 0:01:08]} Kf6 {[%emt 0:00:33]} 25. Bxf8 {[%emt 0:02:05]} Rxf8 {[%emt 0:00:20]} 26. g7 {[%emt 0:01:59]} Re8+ {[%emt 0:01:10]} 27. Ne3 {[%emt 0:01:35]} d4 {[%emt 0:01:11]} 28. g8=Q {[%emt 0:00:35]} Rxg8 {[%emt 0:00:05]} 29. Nd1 {[%emt 0:01:32]} Kf5 {[%emt 0:01:04]} 30. c3 {[%emt 0:02:42]} c5 {[%emt 0:01:21]} 31. cxd4 {[%emt 0:02:12]} cxd4 {[%emt 0:00:06]} 32. Kd2 {[%emt 0:00:42]} Ke4 {[%emt 0:00:27]} 33. Na3 {[%emt 0:00:55]} d3 {[%emt 0:01:19]} 34. Nc3+ {[%emt 0:01:25]} Kd4 {[%emt 0:00:28]} 35. Nab5+ {[%emt 0:00:50]} Kc4 {[%emt 0:00:12]} 36. Nxa7 {[%emt 0:01:57]} Rf8 {[%emt 0:00:47]} 37. Rf1 {[%emt 0:00:44]} Rf3 {[%emt 0:00:06]} 38. Nab5 {[%emt 0:01:21]} Nc8 {[%emt 0:01:43]} 39. Nc7 {[%emt 0:01:15]} Nd6 {[%emt 0:01:00]} 40. N7d5 {[%emt 0:02:29]} Kd4 {[%emt 0:00:35]} 41. Ne3 {[%emt 0:16:34] normal} b5 {[%emt 0:15:54] normal} 1-0

[Event "GER-ch Youth U12w 2019"]
[Site "Willingen"]
[Date "2019.06.15"]
[Round "9.6"]
[White "Lieberwirth, Nele"]
[Black "Wilmink, Anna"]
[Result "0-1"]
[ECO "B38"]
[WhiteElo "1385"]
[BlackElo "1466"]
[Annotator "NA"]
[PlyCount "91"]
[EventDate "2019.06.07"]
[EventType "swiss"]
[EventRounds "9"]
[EventCountry "GER"]
[SourceTitle "playchess.com"]
[Source "ChessBase"]
[SourceQuality "1"]
[TimeControl "40/4500+30:900+30"]

1. e4 {[%emt 0:00:00]} c5 {[%emt 0:00:00]} 2. Nf3 {[%emt 0:00:00]} Nc6 {[%emt 0:00:00]} 3. d4 {[%emt 0:00:00]} cxd4 {[%emt 0:00:00]} 4. Nxd4 {[%emt 0:00:00]} g6 {[%emt 0:00:00]} 5. c4 {[%emt 0:00:00]} Bg7 {[%emt 0:00:00]} 6. Be3 {[%emt 0:00:00]} Nf6 {[%emt 0:00:00]} 7. Nc3 {[%emt 0:00:00]} O-O {[%emt 0:00:00]} 8. Be2 {[%emt 0:00:00]} d6 {[%emt 0:00:00]} 9. O-O {[%emt 0:00:00]} Nd7 {[%emt 0:00:00]} 10. Qd2 {[%emt 0:00:00]} Nc5 {[%emt 0:00:00]} 11. Bf3 {[%emt 0:00:00]} Ne6 {[%emt 0:00:00]} 12. Nde2 {[%emt 0:01:11]} Ne5 {[%emt 0:00:00]} 13. b3 {[%emt 0:20:09]} Nc5 {[%emt 0:00:00]} 14. Nd4 {[%emt 0:07:36]} Nxf3+ {[%emt 0:00:00]} 15. Nxf3 {[%emt 0:00:33]} Bxc3 {[%emt 0:00:21]} 16. Qxc3 {[%emt 0:00:27]} Nxe4 {[%emt 0:00:20]} 17. Qd4 {[%emt 0:01:08]} Nf6 {[%emt 0:00:52]} 18. Ng5 {[%emt 0:05:37]} Qd7 {[%emt 0:05:22]} 19. h3 {[%emt 0:06:39]} b6 {[%emt 0:05:20]} 20. Qh4 {[%emt 0:04:56]} Bb7 {[%emt 0:06:26]} 21. Bd4 {[%emt 0:04:44]} e5 {[%emt 0:00:56]} 22. Bc3 {[%emt 0:01:12]} Qc6 {[%emt 0:01:40]} 23. f3 {[%emt 0:13:53]} Qc5+ {[%emt 0:02:26]} 24. Kh1 {[%emt 0:02:12]} Kg7 {[%emt 0:04:07]} 25. Bd2 {[%emt 0:07:37]} h5 {[%emt 0:06:16]} 26. f4 {[%emt 0:02:23]} Qc6 {[%emt 0:08:55]} 27. Rf2 {[%emt 0:00:54]} Rae8 {[%emt 0:02:35]} 28. Bc3 {[%emt 0:01:40]} Qd7 {[%emt 0:12:56]} 29. Re1 {[%emt 0:01:20]} Qd8 {[%emt 0:06:07]} 30. fxe5 {[%emt 0:00:47]} Ne4 {[%emt 0:00:46]} 31. Bd2 {[%emt 0:00:56]} Nxf2+ {[%emt 0:00:26]} 32. Qxf2 {[%emt 0:00:07]} dxe5 {[%emt 0:00:27]} 33. Nf3 {[%emt 0:00:24]} Bxf3 {[%emt 0:00:34]} 34. gxf3 {[%emt 0:00:02]} Qd7 {[%emt 0:02:23]} 35. Qh2 {[%emt 0:00:51]} Qd3 {[%emt 0:07:02]} 36. Qg2 {[%emt 0:01:03]} Rd8 {[%emt 0:01:23]} 37. Bb4 {[%emt 0:00:25]} Rfe8 {[%emt 0:00:52]} 38. Qg3 {[%emt 0:00:42]} e4 {[%emt 0:00:34]} 39. Qf2 {[%emt 0:01:01]} Qxf3+ {[%emt 0:01:10]} 40. Qxf3 {[%emt 0:00:13]} exf3 {[%emt 0:00:18]} 41. Rxe8 {[%emt 0:15:21]} Rxe8 {[%emt 0:15:11]} 42. Kg1 {[%emt 0:00:11]} Re2 {[%emt 0:00:28]} 43. Kf1 {[%emt 0:00:20]} Rxa2 {[%emt 0:00:36]} 44. Bc3+ {[%emt 0:00:19]} f6 {[%emt 0:01:04]} 45. Bd4 {[%emt 0:00:21]} Ra3 {[%emt 0:01:35]} 46. b4 {[%emt 0:00:35] normal} 0-1

[Event "GER-ch Youth U12w 2019"]
[Site "Willingen"]
[Date "2019.06.15"]
[Round "9.7"]
[White "Ding, Tina"]
[Black "Keymer, Cecilia"]
[Result "0-1"]
[ECO "A11"]
[WhiteElo "1180"]
[BlackElo "1511"]
[Annotator "NA"]
[PlyCount "55"]
[EventDate "2019.06.07"]
[EventType "swiss"]
[EventRounds "9"]
[EventCountry "GER"]
[SourceTitle "playchess.com"]
[Source "ChessBase"]
[SourceQuality "1"]
[TimeControl "40/4500+30:900+30"]

1. c4 {[%emt 0:00:00]} c6 {[%emt 0:00:00]} 2. Nc3 {[%emt 0:00:00]} d5 {[%emt 0:00:00]} 3. cxd5 {[%emt 0:00:00]} cxd5 {[%emt 0:00:00]} 4. d4 {[%emt 0:00:00]} Nf6 {[%emt 0:00:00]} 5. g3 {[%emt 0:00:00]} Nc6 {[%emt 0:00:00]} 6. Bg2 {[%emt 0:00:00]} Bf5 {[%emt 0:00:00]} 7. e3 {[%emt 0:00:00]} e6 {[%emt 0:00:00]} 8. Nge2 {[%emt 0:00:00]} Be7 {[%emt 0:00:00]} 9. O-O {[%emt 0:00:00]} O-O {[%emt 0:00:00]} 10. b3 {[%emt 0:00:00]} h6 {[%emt 0:04:51]} 11. Bb2 {[%emt 0:00:00]} Rc8 {[%emt 0:02:32]} 12. a3 {[%emt 0:00:00]} Na5 {[%emt 0:06:05]} 13. Na4 {[%emt 0:07:20]} Bc2 {[%emt 0:03:46]} 14. Qe1 {[%emt 0:05:41]} Nxb3 {[%emt 0:02:51]} 15. Nac3 {[%emt 0:01:15]} Nxa1 {[%emt 0:01:44]} 16. Qxa1 {[%emt 0:00:56]} Bh7 {[%emt 0:02:07]} 17. Nf4 {[%emt 0:02:31]} Qd7 {[%emt 0:02:45]} 18. Bf3 {[%emt 0:03:26]} Rc7 {[%emt 0:01:46]} 19. a4 {[%emt 0:01:36]} a6 {[%emt 0:01:14]} 20. a5 {[%emt 0:01:57]} Bb4 {[%emt 0:02:02]} 21. Nfe2 {[%emt 0:02:39]} Ne4 {[%emt 0:02:24]} 22. Nxe4 {[%emt 0:04:41]} Bxe4 {[%emt 0:00:36]} 23. Bg4 {[%emt 0:02:16]} Qb5 {[%emt 0:05:59]} 24. Bc3 {[%emt 0:01:53]} Rfc8 {[%emt 0:05:59]} 25. Bxb4 {[%emt 0:01:26]} Qxb4 {[%emt 0:00:30]} 26. Nf4 {[%emt 0:01:16]} Qc3 {[%emt 0:04:24]} 27. Qa4 {[%emt 0:03:12]} Bc2 {[%emt 0:02:32]} 28. Qa2 {[%emt 0:00:48] normal} 0-1

[Event "GER-ch Youth U12w 2019"]
[Site "Willingen"]
[Date "2019.06.15"]
[Round "9.8"]
[White "Hubert, Charlotte"]
[Black "von Beckh, Frieda"]
[Result "0-1"]
[ECO "C47"]
[WhiteElo "1311"]
[BlackElo "1465"]
[Annotator "NA"]
[PlyCount "35"]
[EventDate "2019.06.07"]
[EventType "swiss"]
[EventRounds "9"]
[EventCountry "GER"]
[SourceTitle "playchess.com"]
[Source "ChessBase"]
[SourceQuality "1"]
[TimeControl "40/4500+30:900+30"]

1. e4 {[%emt 0:00:00]} e5 {[%emt 0:00:00]} 2. Nf3 {[%emt 0:00:00]} Nc6 {[%emt 0:00:00]} 3. Nc3 {[%emt 0:00:00]} Nf6 {[%emt 0:00:00]} 4. d4 {[%emt 0:00:00]} exd4 {[%emt 0:00:00]} 5. Nxd4 {[%emt 0:00:00]} Nxe4 {[%emt 0:00:00]} 6. Nxe4 {[%emt 0:12:09]} Qe7 {[%emt 0:00:00]} 7. Be2 {[%emt 0:02:17]} Qxe4 {[%emt 0:00:00]} 8. Nxc6 {[%emt 0:01:23]} dxc6 {[%emt 0:00:00]} 9. O-O {[%emt 0:00:24]} Bd7 {[%emt 0:00:00]} 10. Re1 {[%emt 0:00:38]} O-O-O {[%emt 0:00:00]} 11. Bd3 {[%emt 0:02:37]} Qh4 {[%emt 0:00:00]} 12. Re4 {[%emt 0:18:04]} Qf6 {[%emt 0:00:00]} 13. Be3 {[%emt 0:19:30]} c5 {[%emt 0:00:00]} 14. Rf4 {[%emt 0:07:34]} Qxb2 {[%emt 0:11:20]} 15. Rb1 {[%emt 0:01:09]} Qxa2 {[%emt 0:01:49]} 16. Ra1 {[%emt 0:00:09]} Qb2 {[%emt 0:02:29]} 17. Rxa7 {[%emt 0:01:23]} Kb8 {[%emt 0:00:41]} 18. Ra1 {[%emt 0:00:25] normal} 0-1

[Event "GER-ch Youth U12w 2019"]
[Site "Willingen"]
[Date "2019.06.15"]
[Round "9.9"]
[White "Voigt, Anastasia"]
[Black "Ulrich, Helena Irene"]
[Result "1-0"]
[ECO "B33"]
[WhiteElo "1447"]
[BlackElo "1514"]
[Annotator "NA"]
[PlyCount "76"]
[EventDate "2019.06.07"]
[EventType "swiss"]
[EventRounds "9"]
[EventCountry "GER"]
[SourceTitle "playchess.com"]
[Source "ChessBase"]
[SourceQuality "1"]
[TimeControl "40/4500+30:900+30"]

1. e4 {[%emt 0:00:00]} c5 {[%emt 0:00:00]} 2. Nf3 {[%emt 0:00:00]} Nc6 {[%emt 0:00:00]} 3. d4 {[%emt 0:00:00]} cxd4 {[%emt 0:00:00]} 4. Nxd4 {[%emt 0:00:00]} Nf6 {[%emt 0:00:00]} 5. Nc3 {[%emt 0:00:00]} e5 {[%emt 0:00:00]} 6. Ndb5 {[%emt 0:00:00]} d6 {[%emt 0:00:00]} 7. Bg5 {[%emt 0:00:00]} a6 {[%emt 0:00:00]} 8. Na3 {[%emt 0:00:00]} b5 {[%emt 0:00:00]} 9. Nd5 {[%emt 0:00:00]} Be7 {[%emt 0:00:00]} 10. Bxf6 {[%emt 0:00:00]} Bxf6 {[%emt 0:00:00]} 11. c3 {[%emt 0:00:00]} O-O {[%emt 0:00:00]} 12. h4 {[%emt 0:00:00]} Rb8 {[%emt 0:00:00]} 13. Nc2 {[%emt 0:00:00]} Be6 {[%emt 0:00:00]} 14. Nce3 {[%emt 0:00:00]} Be7 {[%emt 0:00:00]} 15. g3 {[%emt 0:15:09]} Qd7 {[%emt 0:00:00]} 16. Be2 {[%emt 0:08:21]} Bd8 {[%emt 0:05:15]} 17. O-O {[%emt 0:04:00]} Bb6 {[%emt 0:06:31]} 18. b3 {[%emt 0:09:05]} Bxd5 {[%emt 0:06:30]} 19. Nxd5 {[%emt 0:01:41]} Ne7 {[%emt 0:04:45]} 20. a4 {[%emt 0:06:45]} Ng6 {[%emt 0:08:30]} 21. Kg2 {[%emt 0:04:24]} Bc5 {[%emt 0:04:26]} 22. b4 {[%emt 0:01:41]} Bb6 {[%emt 0:01:35]} 23. axb5 {[%emt 0:01:46]} axb5 {[%emt 0:00:21]} 24. h5 {[%emt 0:01:19]} Ne7 {[%emt 0:01:38]} 25. Bxb5 {[%emt 0:04:41]} Qd8 {[%emt 0:01:15]} 26. Bc4 {[%emt 0:01:07]} Nxd5 {[%emt 0:02:04]} 27. Bxd5 {[%emt 0:01:23]} Qc7 {[%emt 0:02:33]} 28. Qf3 {[%emt 0:01:28]} Rbc8 {[%emt 0:02:34]} 29. Rac1 {[%emt 0:01:41]} Qd7 {[%emt 0:01:29]} 30. Rfd1 {[%emt 0:00:37]} Rfd8 {[%emt 0:00:56]} 31. c4 {[%emt 0:00:48]} Bd4 {[%emt 0:01:02]} 32. Qe2 {[%emt 0:04:36]} Kh8 {[%emt 0:01:23]} 33. f4 {[%emt 0:02:00]} f5 {[%emt 0:01:28]} 34. exf5 {[%emt 0:01:14]} Qxf5 {[%emt 0:00:13]} 35. fxe5 {[%emt 0:01:57]} Bxe5 {[%emt 0:00:21]} 36. b5 {[%emt 0:02:52]} Rb8 {[%emt 0:01:00]} 37. Rb1 {[%emt 0:00:51]} Qg5 {[%emt 0:00:33]} 38. Rb3 {[%emt 0:02:46]} Rf8 {[%emt 0:01:01] normal} 1-0